[Event "Early-Titled-Tuesday-Blitz-April-16-2024"]
[Site "Chess.com"]
[Date "2024.04.16"]
[Round "11"]
[White "frederiksvane"]
[Black "snowlord"]
[Result "1-0"]
[WhiteElo "3068"]
[BlackElo "2968"]
[TimeControl "180+1"]
[EndTime "10:11:07 PDT"]
[Termination "frederiksvane won by resignation"]

1. e4 {[%clk 0:03:00.9]} 1... e6 {[%clk 0:03:00.1]} 2. d4 {[%clk 0:03:01.2]}
2... d5 {[%clk 0:03:00.5]} 3. Nc3 {[%clk 0:03:01.8]} 3... Bb4 {[%clk 0:03:00]}
4. exd5 {[%clk 0:03:01.7]} 4... exd5 {[%clk 0:03:00.2]} 5. Bd3 {[%clk
0:03:02.5]} 5... c6 {[%clk 0:02:59.7]} 6. Nf3 {[%clk 0:02:58.9]} 6... Ne7 {[%clk
0:02:54.9]} 7. O-O {[%clk 0:02:59]} 7... O-O {[%clk 0:02:55.5]} 8. Ne2 {[%clk
0:02:59.2]} 8... Bf5 {[%clk 0:02:54]} 9. Bf4 {[%clk 0:02:57.6]} 9... Re8 {[%clk
0:02:43.8]} 10. c3 {[%clk 0:02:52.6]} 10... Bd6 {[%clk 0:02:43.6]} 11. Re1
{[%clk 0:02:53.3]} 11... Bxd3 {[%clk 0:02:36.6]} 12. Qxd3 {[%clk 0:02:53.4]}
12... Ng6 {[%clk 0:02:37.1]} 13. Bxd6 {[%clk 0:02:53.6]} 13... Qxd6 {[%clk
0:02:37.8]} 14. Ng3 {[%clk 0:02:47.7]} 14... Nd7 {[%clk 0:02:38.1]} 15. Nf5
{[%clk 0:02:48.2]} 15... Qf6 {[%clk 0:02:33.2]} 16. g3 {[%clk 0:02:47.4]} 16...
Re6 {[%clk 0:02:20.2]} 17. h4 {[%clk 0:02:26.9]} 17... Rae8 {[%clk 0:02:09]} 18.
Kg2 {[%clk 0:02:05.4]} 18... Re4 {[%clk 0:02:00.2]} 19. Ne3 {[%clk 0:01:45.1]}
19... h6 {[%clk 0:01:52.3]} 20. Nd2 {[%clk 0:01:20.9]} 20... Rxh4 {[%clk
0:01:01.1]} 21. Ng4 {[%clk 0:01:15.9]} 21... Nf4+ {[%clk 0:00:55.6]} 22. Kf3
{[%clk 0:01:03.6]} 22... Rxg4 {[%clk 0:00:25.3]} 23. Rxe8+ {[%clk 0:00:57.9]}
23... Nf8 {[%clk 0:00:26]} 24. gxf4 {[%clk 0:00:52.9]} 24... Rxf4+ {[%clk
0:00:26.7]} 25. Ke2 {[%clk 0:00:53]} 25... Rxf2+ {[%clk 0:00:26.8]} 26. Kd1
{[%clk 0:00:52.4]} 26... g6 {[%clk 0:00:24.3]} 27. Kc2 {[%clk 0:00:50.3]} 27...
Kg7 {[%clk 0:00:24.9]} 28. Rf1 {[%clk 0:00:49.4]} 28... Ne6 {[%clk 0:00:20]} 29.
Rxf2 {[%clk 0:00:49.1]} 29... Qxf2 {[%clk 0:00:20.8]} 30. Re7 {[%clk 0:00:49.4]}
30... h5 {[%clk 0:00:16.1]} 31. Qf3 {[%clk 0:00:49.4]} 31... Qxf3 {[%clk
0:00:06]} 32. Nxf3 {[%clk 0:00:50.3]} 32... Kf6 {[%clk 0:00:06.9]} 33. Rxb7
{[%clk 0:00:50.1]} 33... h4 {[%clk 0:00:06.8]} 34. Nxh4 {[%clk 0:00:50.4]} 1-0

[Event "Early-Titled-Tuesday-Blitz-April-16-2024"]
[Site "Chess.com"]
[Date "2024.04.16"]
[Round "11"]
[White "carloseduar100"]
[Black "Fernando_Offermann"]
[Result "0-1"]
[WhiteElo "2248"]
[BlackElo "2438"]
[TimeControl "180+1"]
[EndTime "10:11:08 PDT"]
[Termination "Fernando_Offermann won on time"]

1. d4 {[%clk 0:02:59.3]} 1... Nf6 {[%clk 0:02:58.7]} 2. Bg5 {[%clk 0:02:59.1]}
2... g6 {[%clk 0:02:57.3]} 3. Bxf6 {[%clk 0:02:58.7]} 3... exf6 {[%clk
0:02:57.8]} 4. g3 {[%clk 0:02:58.4]} 4... f5 {[%clk 0:02:58.1]} 5. e3 {[%clk
0:02:57.1]} 5... d5 {[%clk 0:02:58.3]} 6. Nd2 {[%clk 0:02:57.2]} 6... c6 {[%clk
0:02:58.6]} 7. Bg2 {[%clk 0:02:55.9]} 7... Nd7 {[%clk 0:02:58.4]} 8. Ne2 {[%clk
0:02:48.6]} 8... Nf6 {[%clk 0:02:58.6]} 9. O-O {[%clk 0:02:34.9]} 9... Bd6
{[%clk 0:02:58.5]} 10. c4 {[%clk 0:02:34.7]} 10... dxc4 {[%clk 0:02:56.6]} 11.
Nxc4 {[%clk 0:02:34.5]} 11... Bc7 {[%clk 0:02:55.5]} 12. b4 {[%clk 0:02:34.8]}
12... O-O {[%clk 0:02:52]} 13. a4 {[%clk 0:02:34.7]} 13... a6 {[%clk 0:02:47.6]}
14. Nc3 {[%clk 0:02:22.1]} 14... Re8 {[%clk 0:02:47]} 15. b5 {[%clk 0:02:21.5]}
15... Nd5 {[%clk 0:02:42.3]} 16. Nxd5 {[%clk 0:01:50.2]} 16... cxd5 {[%clk
0:02:40.5]} 17. Ne5 {[%clk 0:01:45.8]} 17... Be6 {[%clk 0:02:32.8]} 18. bxa6
{[%clk 0:01:33.6]} 18... Rxa6 {[%clk 0:02:32.4]} 19. Qb3 {[%clk 0:01:31]} 19...
Rb6 {[%clk 0:02:23.7]} 20. Qa2 {[%clk 0:01:07.3]} 20... Qd6 {[%clk 0:02:22.4]}
21. Rfc1 {[%clk 0:01:00.6]} 21... Ra8 {[%clk 0:02:21.6]} 22. Rxc7 {[%clk
0:00:31.6]} 22... Qxc7 {[%clk 0:02:20.6]} 23. Bxd5 {[%clk 0:00:31.8]} 23... Qc3
{[%clk 0:02:08.6]} 24. Bxe6 {[%clk 0:00:29.4]} 24... Rxe6 {[%clk 0:02:08.2]} 25.
Rb1 {[%clk 0:00:26.2]} 25... Qc7 {[%clk 0:02:05.8]} 26. Qd5 {[%clk 0:00:18.7]}
26... Ra7 {[%clk 0:01:55.8]} 27. h4 {[%clk 0:00:10.3]} 27... Kg7 {[%clk
0:01:55.6]} 28. h5 {[%clk 0:00:09]} 28... gxh5 {[%clk 0:01:55.9]} 29. Nf3 {[%clk
0:00:05.9]} 29... Ra5 {[%clk 0:01:44.6]} 30. Qxb7 {[%clk 0:00:05]} 30... Qxb7
{[%clk 0:01:44.1]} 31. Rxb7 {[%clk 0:00:05.3]} 31... Rxa4 {[%clk 0:01:44.7]} 32.
Rb5 {[%clk 0:00:05.8]} 32... Rf6 {[%clk 0:01:39]} 33. Nh4 {[%clk 0:00:06.2]}
33... Ra1+ {[%clk 0:01:38.9]} 34. Kg2 {[%clk 0:00:06.7]} 34... Raa6 {[%clk
0:01:39.3]} 35. Nxf5+ {[%clk 0:00:06.2]} 35... Kg6 {[%clk 0:01:39.9]} 36. Nh4+
{[%clk 0:00:06.6]} 36... Kh6 {[%clk 0:01:40.5]} 37. e4 {[%clk 0:00:05.7]} 37...
Rab6 {[%clk 0:01:39]} 38. Nf5+ {[%clk 0:00:05]} 38... Kg6 {[%clk 0:01:38.9]} 39.
Rxb6 {[%clk 0:00:04.8]} 39... Rxb6 {[%clk 0:01:38.4]} 40. d5 {[%clk 0:00:05.4]}
40... Kf6 {[%clk 0:01:37.6]} 41. d6 {[%clk 0:00:05.3]} 41... Rb7 {[%clk
0:01:36.5]} 42. f3 {[%clk 0:00:05.6]} 42... Ke5 {[%clk 0:01:36.9]} 43. Kh3
{[%clk 0:00:05.8]} 43... Ke6 {[%clk 0:01:35.5]} 44. Kh4 {[%clk 0:00:06.1]} 44...
Rb3 {[%clk 0:01:36.1]} 45. f4 {[%clk 0:00:04.8]} 45... Rb4 {[%clk 0:01:36.4]}
0-1

[Event "Early-Titled-Tuesday-Blitz-April-16-2024"]
[Site "Chess.com"]
[Date "2024.04.16"]
[Round "11"]
[White "AlphaGoosee"]
[Black "azikom"]
[Result "1-0"]
[WhiteElo "2580"]
[BlackElo "2687"]
[TimeControl "180+1"]
[EndTime "10:11:15 PDT"]
[Termination "AlphaGoosee won by resignation"]

1. e4 {[%clk 0:03:00.9]} 1... c6 {[%clk 0:01:47.8]} 2. d4 {[%clk 0:03:00.7]}
2... d5 {[%clk 0:01:48.2]} 3. exd5 {[%clk 0:03:01.6]} 3... cxd5 {[%clk
0:01:48.3]} 4. Bd3 {[%clk 0:03:02.2]} 4... Nf6 {[%clk 0:01:48.6]} 5. h3 {[%clk
0:03:02.2]} 5... Nc6 {[%clk 0:01:49.5]} 6. c3 {[%clk 0:03:02.7]} 6... g6 {[%clk
0:01:49.8]} 7. Nf3 {[%clk 0:03:03.1]} 7... Bf5 {[%clk 0:01:49.2]} 8. Ne5 {[%clk
0:03:03.6]} 8... Bxd3 {[%clk 0:01:48.8]} 9. Nxd3 {[%clk 0:03:04.5]} 9... Bg7
{[%clk 0:01:49]} 10. O-O {[%clk 0:03:05.2]} 10... O-O {[%clk 0:01:49.5]} 11. Bf4
{[%clk 0:03:05.9]} 11... Ne4 {[%clk 0:01:49.4]} 12. Nd2 {[%clk 0:03:05.6]} 12...
Nxd2 {[%clk 0:01:49.8]} 13. Qxd2 {[%clk 0:03:06.5]} 13... e6 {[%clk 0:01:50.2]}
14. g3 {[%clk 0:03:01.8]} 14... Rc8 {[%clk 0:01:49.5]} 15. h4 {[%clk 0:03:00.4]}
15... h5 {[%clk 0:01:49]} 16. Kg2 {[%clk 0:03:00.3]} 16... Re8 {[%clk
0:01:48.5]} 17. Rae1 {[%clk 0:02:51.4]} 17... Na5 {[%clk 0:01:48.3]} 18. Bg5
{[%clk 0:02:43.6]} 18... Qd7 {[%clk 0:01:47.2]} 19. Ne5 {[%clk 0:02:27.6]} 19...
Qc7 {[%clk 0:01:46.9]} 20. Nd3 {[%clk 0:02:21.6]} 20... Nc4 {[%clk 0:01:46.4]}
21. Qc1 {[%clk 0:02:22.1]} 21... b5 {[%clk 0:01:45.5]} 22. Rh1 {[%clk
0:02:21.6]} 22... a5 {[%clk 0:01:38.3]} 23. Bh6 {[%clk 0:02:13.8]} 23... b4
{[%clk 0:01:31.3]} 24. g4 {[%clk 0:02:05.2]} 24... hxg4 {[%clk 0:01:28.2]} 25.
h5 {[%clk 0:02:04.4]} 25... bxc3 {[%clk 0:01:26.1]} 26. bxc3 {[%clk 0:01:50.9]}
26... Qe7 {[%clk 0:01:11.3]} 27. hxg6 {[%clk 0:01:26.9]} 27... fxg6 {[%clk
0:01:10.1]} 28. Bxg7 {[%clk 0:01:19.3]} 28... Qxg7 {[%clk 0:01:09.2]} 29. Qg5
{[%clk 0:01:19.3]} 29... Qf7 {[%clk 0:00:53.2]} 30. Rh6 {[%clk 0:01:08]} 30...
Kg7 {[%clk 0:00:48.6]} 31. Nf4 {[%clk 0:01:08.2]} 31... e5 {[%clk 0:00:18.9]}
32. Nh5+ {[%clk 0:00:46.3]} 32... Kg8 {[%clk 0:00:15.1]} 33. Rxg6+ {[%clk
0:00:46.6]} 33... Kf8 {[%clk 0:00:14.4]} 34. Rf6 {[%clk 0:00:44.8]} 1-0

[Event "Early-Titled-Tuesday-Blitz-April-16-2024"]
[Site "Chess.com"]
[Date "2024.04.16"]
[Round "11"]
[White "LiemLe"]
[Black "TenisMaster"]
[Result "0-1"]
[WhiteElo "3038"]
[BlackElo "2950"]
[TimeControl "180+1"]
[EndTime "10:11:19 PDT"]
[Termination "TenisMaster won by resignation"]

1. c4 {[%clk 0:03:00.9]} 1... e6 {[%clk 0:02:59.4]} 2. Nf3 {[%clk 0:03:00]} 2...
d5 {[%clk 0:02:59.4]} 3. g3 {[%clk 0:03:00.5]} 3... Nf6 {[%clk 0:02:59.2]} 4.
Bg2 {[%clk 0:03:00.8]} 4... dxc4 {[%clk 0:02:55.8]} 5. Qa4+ {[%clk 0:03:00.2]}
5... Nbd7 {[%clk 0:02:55.4]} 6. Qxc4 {[%clk 0:02:59.9]} 6... a6 {[%clk
0:02:55.8]} 7. Qc2 {[%clk 0:02:57.4]} 7... c5 {[%clk 0:02:53.2]} 8. a4 {[%clk
0:02:52.5]} 8... b6 {[%clk 0:02:40.4]} 9. O-O {[%clk 0:02:48.3]} 9... Bb7 {[%clk
0:02:40.3]} 10. Nc3 {[%clk 0:02:48.9]} 10... Be7 {[%clk 0:02:39.4]} 11. Rd1
{[%clk 0:02:48.6]} 11... O-O {[%clk 0:02:35.6]} 12. e4 {[%clk 0:02:46]} 12... e5
{[%clk 0:02:30.8]} 13. d3 {[%clk 0:02:42.8]} 13... Re8 {[%clk 0:02:23.8]} 14. h3
{[%clk 0:02:40]} 14... Bf8 {[%clk 0:02:22.6]} 15. Be3 {[%clk 0:02:40.4]} 15...
Nb8 {[%clk 0:02:21.3]} 16. Nd2 {[%clk 0:02:15.3]} 16... Nc6 {[%clk 0:02:20.6]}
17. Nc4 {[%clk 0:02:15.9]} 17... Nd4 {[%clk 0:02:11.5]} 18. Bxd4 {[%clk
0:01:47.2]} 18... cxd4 {[%clk 0:02:12.4]} 19. Ne2 {[%clk 0:01:42.3]} 19... Rc8
{[%clk 0:02:09.9]} 20. Qd2 {[%clk 0:01:35.2]} 20... b5 {[%clk 0:01:55.2]} 21.
Na5 {[%clk 0:01:27.5]} 21... Ba8 {[%clk 0:01:54.7]} 22. axb5 {[%clk 0:01:21.6]}
22... axb5 {[%clk 0:01:55.6]} 23. b4 {[%clk 0:01:18.2]} 23... Bd6 {[%clk
0:01:51]} 24. Rdb1 {[%clk 0:01:15.5]} 24... Rc7 {[%clk 0:01:43.1]} 25. Ra2
{[%clk 0:01:15.2]} 25... Qe7 {[%clk 0:01:42]} 26. h4 {[%clk 0:01:13.3]} 26...
Nd7 {[%clk 0:01:29.5]} 27. Bh3 {[%clk 0:01:03.6]} 27... Nb6 {[%clk 0:01:29.6]}
28. Rc2 {[%clk 0:01:02.6]} 28... Na4 {[%clk 0:01:24.6]} 29. Rxc7 {[%clk
0:01:02.3]} 29... Qxc7 {[%clk 0:01:22.9]} 30. Rc1 {[%clk 0:01:01.5]} 30... Qe7
{[%clk 0:01:09.8]} 31. Qc2 {[%clk 0:00:54.2]} 31... Bxb4 {[%clk 0:01:05.2]} 32.
Nc6 {[%clk 0:00:54.5]} 32... Bxc6 {[%clk 0:00:59.2]} 33. Qxc6 {[%clk 0:00:55.4]}
33... Nc3 {[%clk 0:00:57.9]} 34. Nxc3 {[%clk 0:00:54.8]} 34... dxc3 {[%clk
0:00:58.5]} 35. Qxb5 {[%clk 0:00:53.2]} 35... g6 {[%clk 0:00:53.7]} 36. Qc4
{[%clk 0:00:41.6]} 36... Kg7 {[%clk 0:00:51.3]} 37. Rb1 {[%clk 0:00:38.4]} 37...
Rb8 {[%clk 0:00:43]} 38. Bg4 {[%clk 0:00:31.9]} 38... Qc5 {[%clk 0:00:41.2]} 39.
Kf1 {[%clk 0:00:20.4]} 39... Qxc4 {[%clk 0:00:37.6]} 40. dxc4 {[%clk 0:00:21.3]}
40... Ba3 {[%clk 0:00:36.2]} 0-1

[Event "Early-Titled-Tuesday-Blitz-April-16-2024"]
[Site "Chess.com"]
[Date "2024.04.16"]
[Round "11"]
[White "viditchess"]
[Black "Seochesspie"]
[Result "1/2-1/2"]
[WhiteElo "3115"]
[BlackElo "2873"]
[TimeControl "180+1"]
[EndTime "10:11:27 PDT"]
[Termination "Game drawn by repetition"]

1. c4 {[%clk 0:03:00.9]} 1... e6 {[%clk 0:02:59.4]} 2. g3 {[%clk 0:03:00.5]}
2... d5 {[%clk 0:02:58.6]} 3. Bg2 {[%clk 0:03:00.9]} 3... Nf6 {[%clk 0:02:57.9]}
4. Nf3 {[%clk 0:03:00.8]} 4... d4 {[%clk 0:02:57.4]} 5. O-O {[%clk 0:03:00.4]}
5... Nc6 {[%clk 0:02:52.8]} 6. d3 {[%clk 0:02:57.9]} 6... Bc5 {[%clk 0:02:49.8]}
7. Nbd2 {[%clk 0:02:52.4]} 7... O-O {[%clk 0:02:47.3]} 8. Nb3 {[%clk 0:02:51.7]}
8... Be7 {[%clk 0:02:47.8]} 9. e3 {[%clk 0:02:52]} 9... dxe3 {[%clk 0:02:47.6]}
10. Bxe3 {[%clk 0:02:52.9]} 10... a5 {[%clk 0:02:46.8]} 11. Nbd4 {[%clk
0:02:45.6]} 11... Bd7 {[%clk 0:02:45.5]} 12. Nb5 {[%clk 0:02:40.2]} 12... e5
{[%clk 0:02:33.6]} 13. Qe2 {[%clk 0:02:35.2]} 13... Re8 {[%clk 0:02:32.8]} 14.
Rfd1 {[%clk 0:02:33.7]} 14... Qc8 {[%clk 0:02:27.5]} 15. a3 {[%clk 0:02:27.8]}
15... h6 {[%clk 0:02:22.2]} 16. Re1 {[%clk 0:02:19.6]} 16... Bf8 {[%clk
0:02:21.7]} 17. Qc2 {[%clk 0:02:18.1]} 17... Nd8 {[%clk 0:02:09.8]} 18. Bd2
{[%clk 0:02:11.4]} 18... c6 {[%clk 0:02:05.6]} 19. Nc3 {[%clk 0:02:11.2]} 19...
Qc7 {[%clk 0:02:05.2]} 20. h3 {[%clk 0:02:02.5]} 20... Bf5 {[%clk 0:02:04]} 21.
Re3 {[%clk 0:01:33.4]} 21... Ne6 {[%clk 0:01:57.2]} 22. Rae1 {[%clk 0:01:31.6]}
22... Nd4 {[%clk 0:01:50.1]} 23. Nxd4 {[%clk 0:01:25.2]} 23... exd4 {[%clk
0:01:51]} 24. Rxe8 {[%clk 0:01:25.4]} 24... Rxe8 {[%clk 0:01:48.5]} 25. Rxe8
{[%clk 0:01:25.3]} 25... Nxe8 {[%clk 0:01:49.4]} 26. Ne2 {[%clk 0:01:25.5]}
26... c5 {[%clk 0:01:48.2]} 27. Nf4 {[%clk 0:01:24]} 27... Nf6 {[%clk
0:01:45.3]} 28. h4 {[%clk 0:01:06.6]} 28... Bd6 {[%clk 0:01:44]} 29. b4 {[%clk
0:01:00.7]} 29... axb4 {[%clk 0:01:42.1]} 30. axb4 {[%clk 0:01:01.6]} 30... cxb4
{[%clk 0:01:34]} 31. Ne2 {[%clk 0:00:43.4]} 31... Bc5 {[%clk 0:01:29.5]} 32. Qb3
{[%clk 0:00:37.4]} 32... Qa5 {[%clk 0:01:15.1]} 33. Bxb7 {[%clk 0:00:34.8]}
33... Qa3 {[%clk 0:01:12.7]} 34. Nc1 {[%clk 0:00:34.5]} 34... Ng4 {[%clk
0:01:04.3]} 35. Bf3 {[%clk 0:00:18.8]} 35... Ne5 {[%clk 0:01:04.2]} 36. Be2
{[%clk 0:00:19.5]} 36... Bd7 {[%clk 0:00:34.6]} 37. Bd1 {[%clk 0:00:14.4]} 37...
Bf5 {[%clk 0:00:33.2]} 38. Be2 {[%clk 0:00:13]} 38... Bd7 {[%clk 0:00:33.1]} 39.
Bd1 {[%clk 0:00:12.7]} 39... Bf5 {[%clk 0:00:33.3]} 40. Be2 {[%clk 0:00:11.8]}
1/2-1/2

[Event "Early-Titled-Tuesday-Blitz-April-16-2024"]
[Site "Chess.com"]
[Date "2024.04.16"]
[Round "11"]
[White "David_Arutinian"]
[Black "tetrix83"]
[Result "1-0"]
[WhiteElo "2844"]
[BlackElo "2644"]
[TimeControl "180+1"]
[EndTime "10:11:31 PDT"]
[Termination "David_Arutinian won on time"]

1. Nf3 {[%clk 0:03:00.9]} 1... Nf6 {[%clk 0:02:58.9]} 2. c4 {[%clk 0:03:00.7]}
2... g6 {[%clk 0:02:59]} 3. Nc3 {[%clk 0:02:59.6]} 3... Bg7 {[%clk 0:02:59.5]}
4. e4 {[%clk 0:03:00.2]} 4... O-O {[%clk 0:02:58.7]} 5. d4 {[%clk 0:03:00.8]}
5... d6 {[%clk 0:02:58.9]} 6. Be2 {[%clk 0:03:01.5]} 6... e5 {[%clk 0:02:58.6]}
7. O-O {[%clk 0:03:02]} 7... Na6 {[%clk 0:02:58.2]} 8. Re1 {[%clk 0:03:00.7]}
8... Qe7 {[%clk 0:02:52.6]} 9. Bg5 {[%clk 0:02:51.1]} 9... c6 {[%clk 0:02:50.2]}
10. Bf1 {[%clk 0:02:49.9]} 10... h6 {[%clk 0:02:48.1]} 11. Bc1 {[%clk
0:02:48.5]} 11... Bg4 {[%clk 0:02:45]} 12. d5 {[%clk 0:02:48.4]} 12... c5 {[%clk
0:02:41.6]} 13. Be2 {[%clk 0:02:47.5]} 13... Nh7 {[%clk 0:02:28.9]} 14. g3
{[%clk 0:02:46.7]} 14... Rae8 {[%clk 0:02:08.7]} 15. Nh4 {[%clk 0:02:45.3]}
15... Bd7 {[%clk 0:02:00.1]} 16. Bd2 {[%clk 0:02:37.7]} 16... h5 {[%clk
0:01:53.2]} 17. a3 {[%clk 0:02:33.6]} 17... Bf6 {[%clk 0:01:52]} 18. Ng2 {[%clk
0:02:33.3]} 18... Bg5 {[%clk 0:01:51.7]} 19. b4 {[%clk 0:02:30.9]} 19... Bxd2
{[%clk 0:01:44.3]} 20. Qxd2 {[%clk 0:02:30.7]} 20... f5 {[%clk 0:01:40.3]} 21.
exf5 {[%clk 0:02:29.7]} 21... Bxf5 {[%clk 0:01:40.4]} 22. f4 {[%clk 0:02:05.9]}
22... exf4 {[%clk 0:01:22]} 23. gxf4 {[%clk 0:01:56]} 23... Qf6 {[%clk
0:01:01.8]} 24. Nb5 {[%clk 0:01:41.9]} 24... Be4 {[%clk 0:00:55.8]} 25. Bf1
{[%clk 0:01:41.1]} 25... g5 {[%clk 0:00:54]} 26. Qc3 {[%clk 0:00:57.6]} 26...
Qg6 {[%clk 0:00:41.1]} 27. f5 {[%clk 0:00:46.1]} 27... Qxf5 {[%clk 0:00:23.4]}
28. Nxd6 {[%clk 0:00:41.8]} 28... Qf2+ {[%clk 0:00:23.4]} 29. Kh1 {[%clk
0:00:42]} 29... Rf3 {[%clk 0:00:08.7]} 30. Qc1 {[%clk 0:00:21.9]} 1-0

[Event "Early-Titled-Tuesday-Blitz-April-16-2024"]
[Site "Chess.com"]
[Date "2024.04.16"]
[Round "11"]
[White "Burgsvik"]
[Black "GreenPeach24"]
[Result "0-1"]
[WhiteElo "2264"]
[BlackElo "2438"]
[TimeControl "180+1"]
[EndTime "10:11:31 PDT"]
[Termination "GreenPeach24 won by resignation"]

1. e4 {[%clk 0:03:00.9]} 1... c6 {[%clk 0:02:59.4]} 2. d4 {[%clk 0:03:00.2]}
2... d5 {[%clk 0:02:59.4]} 3. e5 {[%clk 0:03:01.1]} 3... c5 {[%clk 0:02:59.3]}
4. dxc5 {[%clk 0:03:00.7]} 4... e6 {[%clk 0:02:59.7]} 5. Bb5+ {[%clk 0:03:00.1]}
5... Bd7 {[%clk 0:02:56.9]} 6. Bxd7+ {[%clk 0:02:56.1]} 6... Nxd7 {[%clk
0:02:57.1]} 7. Be3 {[%clk 0:02:55.8]} 7... Nxe5 {[%clk 0:02:55.4]} 8. Qd4 {[%clk
0:02:54.6]} 8... Nc6 {[%clk 0:02:54.7]} 9. Qa4 {[%clk 0:02:54.3]} 9... Nf6
{[%clk 0:02:53.4]} 10. b4 {[%clk 0:02:51.6]} 10... Qd7 {[%clk 0:02:43.7]} 11.
Nf3 {[%clk 0:02:49.9]} 11... Be7 {[%clk 0:02:17.3]} 12. Nbd2 {[%clk 0:02:45.7]}
12... O-O {[%clk 0:02:16]} 13. Rd1 {[%clk 0:02:39.4]} 13... Nd4 {[%clk
0:02:05.6]} 14. Qxd7 {[%clk 0:02:32]} 14... Nxc2+ {[%clk 0:02:05.1]} 15. Ke2
{[%clk 0:02:29.7]} 15... Nxd7 {[%clk 0:02:05.5]} 16. a3 {[%clk 0:02:28]} 16...
Nxe3 {[%clk 0:02:03.7]} 17. fxe3 {[%clk 0:02:27.4]} 17... a5 {[%clk 0:02:03.5]}
18. Rb1 {[%clk 0:02:25.9]} 18... b6 {[%clk 0:02:00.8]} 19. c6 {[%clk 0:02:13.8]}
19... Nf6 {[%clk 0:01:59.7]} 20. b5 {[%clk 0:02:06.1]} 20... Bxa3 {[%clk
0:01:58.2]} 21. Ne5 {[%clk 0:01:41]} 21... Bd6 {[%clk 0:01:53.1]} 22. Ndf3
{[%clk 0:01:39.8]} 22... Ne4 {[%clk 0:01:52]} 23. Rhc1 {[%clk 0:01:37.7]} 23...
Bc7 {[%clk 0:01:45.8]} 24. g3 {[%clk 0:01:31.4]} 24... Rfd8 {[%clk 0:01:42.5]}
25. Nd3 {[%clk 0:01:28.1]} 25... f6 {[%clk 0:01:37.3]} 26. Nd4 {[%clk
0:01:27.3]} 26... Kf7 {[%clk 0:01:36.8]} 27. Nf4 {[%clk 0:01:22.7]} 27... Re8
{[%clk 0:01:15.6]} 28. Nd3 {[%clk 0:01:05.3]} 28... Rad8 {[%clk 0:01:13.2]} 29.
Rb2 {[%clk 0:00:50.9]} 29... e5 {[%clk 0:01:07.6]} 30. Nf5 {[%clk 0:00:47.9]}
30... g6 {[%clk 0:01:07.5]} 31. Nh4 {[%clk 0:00:47.7]} 31... d4 {[%clk
0:01:07.4]} 32. exd4 {[%clk 0:00:39.4]} 32... Rxd4 {[%clk 0:01:05.3]} 33. Nf3
{[%clk 0:00:38.2]} 33... Rd5 {[%clk 0:01:03.5]} 34. Ke3 {[%clk 0:00:34.3]} 34...
Nd6 {[%clk 0:00:59.2]} 35. Nf2 {[%clk 0:00:29.9]} 35... Rd8 {[%clk 0:00:48.8]}
36. Ne4 {[%clk 0:00:14.3]} 36... Nxe4 {[%clk 0:00:45.4]} 37. Kxe4 {[%clk
0:00:15.2]} 37... Rd3 {[%clk 0:00:45.4]} 38. g4 {[%clk 0:00:06.2]} 38... Ke6
{[%clk 0:00:39.7]} 0-1

[Event "Early-Titled-Tuesday-Blitz-April-16-2024"]
[Site "Chess.com"]
[Date "2024.04.16"]
[Round "11"]
[White "Navyblue1"]
[Black "Laico"]
[Result "0-1"]
[WhiteElo "2250"]
[BlackElo "2398"]
[TimeControl "180+1"]
[EndTime "10:11:31 PDT"]
[Termination "Laico won by resignation"]

1. d4 {[%clk 0:03:00.9]} 1... e6 {[%clk 0:02:20.7]} 2. c4 {[%clk 0:02:58.9]}
2... f5 {[%clk 0:02:21.2]} 3. Nc3 {[%clk 0:02:52.7]} 3... b6 {[%clk 0:02:21.3]}
4. e4 {[%clk 0:02:49.3]} 4... fxe4 {[%clk 0:02:22.2]} 5. Nxe4 {[%clk 0:02:48.5]}
5... Nf6 {[%clk 0:02:22.8]} 6. Bd3 {[%clk 0:02:37.3]} 6... Bb7 {[%clk
0:02:22.9]} 7. Qe2 {[%clk 0:02:37.1]} 7... Bb4+ {[%clk 0:02:23]} 8. Kf1 {[%clk
0:02:19.4]} 8... O-O {[%clk 0:02:23.3]} 9. Nf3 {[%clk 0:02:17]} 9... Qe8 {[%clk
0:02:22.4]} 10. a3 {[%clk 0:02:12.6]} 10... Be7 {[%clk 0:02:17.5]} 11. h3 {[%clk
0:01:58.9]} 11... Qh5 {[%clk 0:02:15.3]} 12. Bd2 {[%clk 0:01:42.7]} 12... Nc6
{[%clk 0:02:11.5]} 13. Bc3 {[%clk 0:01:42.2]} 13... Rae8 {[%clk 0:02:01.6]} 14.
Kg1 {[%clk 0:01:31]} 14... Nxe4 {[%clk 0:01:55.9]} 15. Bxe4 {[%clk 0:01:28.1]}
15... Bf6 {[%clk 0:01:55.8]} 16. Qd3 {[%clk 0:01:13.6]} 16... d5 {[%clk
0:01:51.8]} 17. cxd5 {[%clk 0:00:57.7]} 17... exd5 {[%clk 0:01:51.7]} 18. Bf5
{[%clk 0:00:55.2]} 18... Bxd4 {[%clk 0:01:38.1]} 19. Nxd4 {[%clk 0:00:46.7]}
19... Nxd4 {[%clk 0:01:37.3]} 20. Qxd4 {[%clk 0:00:45.9]} 20... Rf6 {[%clk
0:01:31.1]} 21. Bg4 {[%clk 0:00:41.7]} 21... Qg5 {[%clk 0:01:31.4]} 22. Qa4
{[%clk 0:00:20.6]} 22... Rff8 {[%clk 0:01:27]} 23. Qb3 {[%clk 0:00:18.4]} 23...
c5 {[%clk 0:01:22]} 24. Qc2 {[%clk 0:00:17.7]} 24... d4 {[%clk 0:01:19.9]} 25.
Be1 {[%clk 0:00:15.6]} 25... h5 {[%clk 0:01:19.3]} 26. Bd2 {[%clk 0:00:15.4]}
26... Qh4 {[%clk 0:01:07.3]} 27. g3 {[%clk 0:00:14.8]} 27... Qf6 {[%clk
0:01:05.7]} 28. Bf4 {[%clk 0:00:13.8]} 28... Qc6 {[%clk 0:00:54.5]} 29. Qb3+
{[%clk 0:00:13.6]} 29... c4 {[%clk 0:00:53.7]} 30. Bf3 {[%clk 0:00:09.7]} 30...
Qxf3 {[%clk 0:00:38.1]} 31. Qxf3 {[%clk 0:00:10.6]} 31... Bxf3 {[%clk
0:00:37.5]} 32. Rh2 {[%clk 0:00:10.8]} 32... Rxf4 {[%clk 0:00:29.6]} 33. gxf4
{[%clk 0:00:10.7]} 33... d3 {[%clk 0:00:30.1]} 34. h4 {[%clk 0:00:09.3]} 34...
d2 {[%clk 0:00:28.1]} 35. Rh3 {[%clk 0:00:09.7]} 35... Re1+ {[%clk 0:00:26.2]}
0-1